[Event "*** SCC Grand Prix: Titled Tuesday Blitz"]
[Site "Chess.com"]
[Date "2020.06.09"]
[Round "5"]
[White "BikingBrian"]
[Black "PlayChessSimple"]
[Result "0-1"]
[WhiteElo "2306"]
[BlackElo "2501"]
[TimeControl "180+1"]
[EndTime "9:57:01 PDT"]
[Termination "PlayChessSimple won by resignation"]

1. d4 {[%clk 0:03:00.9]} 1... e6 {[%clk 0:02:59.6]} 2. e4 {[%clk 0:02:59.9]}
2... d5 {[%clk 0:02:58.6]} 3. Nd2 {[%clk 0:03:00.2]} 3... c5 {[%clk 0:02:55.9]}
4. exd5 {[%clk 0:02:59.7]} 4... Qxd5 {[%clk 0:02:55.7]} 5. Ngf3 {[%clk
0:02:58.6]} 5... cxd4 {[%clk 0:02:56]} 6. Bc4 {[%clk 0:02:55.9]} 6... Qd8 {[%clk
0:02:56.1]} 7. Nb3 {[%clk 0:02:49]} 7... Qc7 {[%clk 0:02:43.1]} 8. Qe2 {[%clk
0:02:30.1]} 8... Nc6 {[%clk 0:02:33.7]} 9. Nbxd4 {[%clk 0:02:27.8]} 9... Nxd4
{[%clk 0:02:33.7]} 10. Nxd4 {[%clk 0:02:27.6]} 10... a6 {[%clk 0:02:33.9]} 11.
O-O {[%clk 0:02:23.9]} 11... Bd6 {[%clk 0:02:33.7]} 12. Nf5 {[%clk 0:02:17.4]}
12... Bxh2+ {[%clk 0:02:33.1]} 13. Kh1 {[%clk 0:02:17]} 13... Qe5 {[%clk
0:02:31.9]} 14. Nxg7+ {[%clk 0:02:06]} 14... Kf8 {[%clk 0:02:22.1]} 15. Qxe5
{[%clk 0:02:03.7]} 15... Bxe5 {[%clk 0:02:21.3]} 16. Nh5 {[%clk 0:02:02.3]}
16... Bd7 {[%clk 0:02:13.6]} 17. Re1 {[%clk 0:01:48.5]} 17... Rc8 {[%clk
0:02:00.4]} 18. Bb3 {[%clk 0:01:33]} 18... Bb8 {[%clk 0:01:58.6]} 19. Bf4 {[%clk
0:01:28.9]} 19... Bxf4 {[%clk 0:01:54.2]} 20. Nxf4 {[%clk 0:01:28.8]} 20... Nf6
{[%clk 0:01:54.3]} 21. Rad1 {[%clk 0:01:24.3]} 21... Rg8 {[%clk 0:01:53.7]} 22.
f3 {[%clk 0:01:14.5]} 22... Rc5 {[%clk 0:01:47.4]} 23. Rd4 {[%clk 0:00:54.8]}
23... Rcg5 {[%clk 0:01:39.4]} 24. Rd2 {[%clk 0:00:38.1]} 24... Ke7 {[%clk
0:01:22.3]} 25. Red1 {[%clk 0:00:34.2]} 25... Bc6 {[%clk 0:01:19.3]} 26. c3
{[%clk 0:00:27.9]} 26... Nh5 {[%clk 0:01:13.1]} 27. Nh3 {[%clk 0:00:26.5]} 27...
Rg3 {[%clk 0:00:57]} 28. Kh2 {[%clk 0:00:21.6]} 28... Nf6 {[%clk 0:00:46.7]} 29.
Bc2 {[%clk 0:00:20.6]} 29... h5 {[%clk 0:00:42.8]} 30. Re1 {[%clk 0:00:18]}
30... h4 {[%clk 0:00:42.2]} 31. Be4 {[%clk 0:00:17.9]} 31... Bxe4 {[%clk
0:00:39]} 32. fxe4 {[%clk 0:00:18.8]} 32... Ng4+ {[%clk 0:00:38.9]} 33. Kh1
{[%clk 0:00:16.9]} 33... Ne5 {[%clk 0:00:37.6]} 34. Nf4 {[%clk 0:00:15.3]} 34...
R8g4 {[%clk 0:00:34.5]} 35. Nh3 {[%clk 0:00:13.2]} 35... Nc4 {[%clk 0:00:27.5]}
36. Rf2 {[%clk 0:00:09.7]} 36... Ne3 {[%clk 0:00:24.4]} 37. Nf4 {[%clk
0:00:07.6]} 37... Rxf4 {[%clk 0:00:20]} 38. Rxf4 {[%clk 0:00:07.4]} 38... Nxg2
{[%clk 0:00:20.6]} 39. Ref1 {[%clk 0:00:07.6]} 39... Nxf4 {[%clk 0:00:19.5]} 40.
Rxf4 {[%clk 0:00:08.5]} 40... h3 {[%clk 0:00:18.5]} 41. Kh2 {[%clk 0:00:07.7]}
41... Rg2+ {[%clk 0:00:18.4]} 42. Kxh3 {[%clk 0:00:08.2]} 42... Rxb2 {[%clk
0:00:18.4]} 43. a4 {[%clk 0:00:07.8]} 43... Rc2 {[%clk 0:00:17.2]} 44. Rf3
{[%clk 0:00:08]} 44... Re2 {[%clk 0:00:16.7]} 45. Rf4 {[%clk 0:00:07.8]} 45...
Re3+ {[%clk 0:00:16.3]} 46. Kg4 {[%clk 0:00:08.7]} 46... Rxc3 {[%clk 0:00:16.2]}
47. e5 {[%clk 0:00:09.2]} 47... b5 {[%clk 0:00:15.5]} 48. axb5 {[%clk
0:00:08.8]} 48... axb5 {[%clk 0:00:15.8]} 49. Rb4 {[%clk 0:00:09.5]} 49... Rc4+
{[%clk 0:00:15.9]} 50. Rxc4 {[%clk 0:00:08.3]} 50... bxc4 {[%clk 0:00:16.2]} 51.
Kf4 {[%clk 0:00:09]} 0-1

[Event "*** SCC Grand Prix: Titled Tuesday Blitz"]
[Site "Chess.com"]
[Date "2020.06.09"]
[Round "5"]
[White "GMaka"]
[Black "malandragem"]
[Result "1-0"]
[WhiteElo "2352"]
[BlackElo "2445"]
[TimeControl "180+1"]
[EndTime "9:57:02 PDT"]
[Termination "GMaka won on time"]

1. d4 {[%clk 0:03:00.9]} 1... Nf6 {[%clk 0:02:59.8]} 2. Bf4 {[%clk 0:03:00.2]}
2... d5 {[%clk 0:02:59]} 3. e3 {[%clk 0:03:00.2]} 3... c5 {[%clk 0:02:59.5]} 4.
c3 {[%clk 0:03:00.5]} 4... Nc6 {[%clk 0:02:59.9]} 5. Nd2 {[%clk 0:03:00.2]} 5...
e6 {[%clk 0:03:00.3]} 6. Ngf3 {[%clk 0:02:58.6]} 6... Bd6 {[%clk 0:03:00.7]} 7.
Bg3 {[%clk 0:02:57.9]} 7... O-O {[%clk 0:03:00.8]} 8. Bd3 {[%clk 0:02:58]} 8...
b6 {[%clk 0:03:00.6]} 9. Ne5 {[%clk 0:02:57.6]} 9... Ne7 {[%clk 0:02:48.7]} 10.
f4 {[%clk 0:02:48.2]} 10... Bb7 {[%clk 0:02:36.5]} 11. Bh4 {[%clk 0:02:41.9]}
11... Ne4 {[%clk 0:02:34]} 12. Bxe4 {[%clk 0:02:39.4]} 12... dxe4 {[%clk
0:02:33.8]} 13. Ndc4 {[%clk 0:02:08.6]} 13... Bc7 {[%clk 0:02:28.9]} 14. dxc5
{[%clk 0:02:05.5]} 14... f6 {[%clk 0:01:52.5]} 15. cxb6 {[%clk 0:02:04.9]} 15...
axb6 {[%clk 0:01:47.3]} 16. Qxd8 {[%clk 0:02:03.5]} 16... Rfxd8 {[%clk 0:01:46]}
17. Ng4 {[%clk 0:01:51.3]} 17... Nf5 {[%clk 0:01:45.7]} 18. Nxf6+ {[%clk
0:01:35.3]} 18... gxf6 {[%clk 0:01:45]} 19. Bxf6 {[%clk 0:01:36.2]} 19... Rdc8
{[%clk 0:01:35.4]} 20. g4 {[%clk 0:01:28.6]} 20... Nd6 {[%clk 0:01:29.8]} 21.
Nxd6 {[%clk 0:01:28.3]} 21... Bxd6 {[%clk 0:01:30.7]} 22. Bd4 {[%clk 0:01:28.7]}
22... Bc5 {[%clk 0:01:28.3]} 23. Kd2 {[%clk 0:01:19.6]} 23... Bxd4 {[%clk
0:01:28.2]} 24. cxd4 {[%clk 0:01:19.7]} 24... Bd5 {[%clk 0:01:27.4]} 25. b3
{[%clk 0:01:16.9]} 25... b5 {[%clk 0:01:26.5]} 26. Rhf1 {[%clk 0:01:07.4]} 26...
b4 {[%clk 0:01:23.3]} 27. f5 {[%clk 0:01:07.7]} 27... Rc3 {[%clk 0:01:23.2]} 28.
f6 {[%clk 0:00:45.4]} 28... Rac8 {[%clk 0:01:14]} 29. Rfc1 {[%clk 0:00:43.4]}
29... Rxc1 {[%clk 0:00:56.5]} 30. Rxc1 {[%clk 0:00:44.3]} 30... Rxc1 {[%clk
0:00:56.3]} 31. Kxc1 {[%clk 0:00:45.2]} 31... Kf7 {[%clk 0:00:50.4]} 32. g5
{[%clk 0:00:44.1]} 32... e5 {[%clk 0:00:39.6]} 33. dxe5 {[%clk 0:00:41.9]} 33...
Ke6 {[%clk 0:00:40]} 34. h4 {[%clk 0:00:18.6]} 34... Kxe5 {[%clk 0:00:27.8]} 35.
a3 {[%clk 0:00:13.4]} 35... bxa3 {[%clk 0:00:12.2]} 36. b4 {[%clk 0:00:14.3]}
36... Bc4 {[%clk 0:00:07.7]} 37. h5 {[%clk 0:00:10.4]} 37... Kf5 {[%clk
0:00:07.3]} 38. b5 {[%clk 0:00:10.1]} 38... Ke6 {[%clk 0:00:01]} 39. b6 {[%clk
0:00:09.8]} 39... Ba6 {[%clk 0:00:01.4]} 40. Kb1 {[%clk 0:00:08]} 1-0

[Event "*** SCC Grand Prix: Titled Tuesday Blitz"]
[Site "Chess.com"]
[Date "2020.06.09"]
[Round "5"]
[White "Mbneu"]
[Black "mattcolins2025"]
[Result "1/2-1/2"]
[WhiteElo "2226"]
[BlackElo "2389"]
[TimeControl "180+1"]
[EndTime "9:57:02 PDT"]
[Termination "Game drawn - insufficient material"]

1. d4 {[%clk 0:03:00.1]} 1... Nf6 {[%clk 0:03:00.2]} 2. c4 {[%clk 0:03:00]} 2...
g6 {[%clk 0:03:00.7]} 3. Nc3 {[%clk 0:02:59.7]} 3... Bg7 {[%clk 0:03:01.3]} 4.
e4 {[%clk 0:02:56.9]} 4... d6 {[%clk 0:03:01.8]} 5. f4 {[%clk 0:02:55.8]} 5...
O-O {[%clk 0:03:02.5]} 6. Nf3 {[%clk 0:02:54.9]} 6... c5 {[%clk 0:03:03.2]} 7.
d5 {[%clk 0:02:53.9]} 7... e6 {[%clk 0:03:02.5]} 8. Be2 {[%clk 0:02:54.5]} 8...
exd5 {[%clk 0:03:02.2]} 9. cxd5 {[%clk 0:02:55.4]} 9... Bg4 {[%clk 0:03:02.3]}
10. O-O {[%clk 0:02:54.1]} 10... Nbd7 {[%clk 0:02:59.7]} 11. h3 {[%clk
0:02:22.8]} 11... Bxf3 {[%clk 0:02:58.7]} 12. Bxf3 {[%clk 0:02:23.7]} 12... Ne8
{[%clk 0:02:58.7]} 13. Re1 {[%clk 0:02:17.1]} 13... a6 {[%clk 0:02:57]} 14. a4
{[%clk 0:02:15.8]} 14... Nc7 {[%clk 0:02:57.1]} 15. Kh1 {[%clk 0:02:13.5]} 15...
b5 {[%clk 0:02:55.4]} 16. e5 {[%clk 0:02:05.6]} 16... dxe5 {[%clk 0:02:39]} 17.
d6 {[%clk 0:02:03]} 17... Ne6 {[%clk 0:02:38.4]} 18. Bxa8 {[%clk 0:02:01.6]}
18... b4 {[%clk 0:02:24.6]} 19. Bc6 {[%clk 0:01:46.4]} 19... bxc3 {[%clk
0:02:24]} 20. Bxd7 {[%clk 0:01:45.2]} 20... Qxd7 {[%clk 0:02:20.8]} 21. fxe5
{[%clk 0:01:43.3]} 21... c2 {[%clk 0:02:12.5]} 22. Qxc2 {[%clk 0:01:42]} 22...
Nd4 {[%clk 0:02:11.9]} 23. Qxc5 {[%clk 0:01:33.6]} 23... Nb3 {[%clk 0:02:09.1]}
24. Qa3 {[%clk 0:01:30.4]} 24... Nxa1 {[%clk 0:02:07.8]} 25. Qxa1 {[%clk
0:01:30.9]} 25... Qe6 {[%clk 0:02:00.1]} 26. Bf4 {[%clk 0:01:26.5]} 26... Re8
{[%clk 0:01:58.3]} 27. b4 {[%clk 0:01:20.4]} 27... f6 {[%clk 0:01:50.3]} 28. d7
{[%clk 0:01:12.4]} 28... Qxd7 {[%clk 0:01:47.7]} 29. exf6 {[%clk 0:01:12.4]}
29... Rxe1+ {[%clk 0:01:47.5]} 30. Qxe1 {[%clk 0:01:12.3]} 30... Bxf6 {[%clk
0:01:47.7]} 31. Qe4 {[%clk 0:01:08.5]} 31... Qxa4 {[%clk 0:01:36.6]} 32. Qa8+
{[%clk 0:00:56.3]} 32... Kf7 {[%clk 0:01:35.8]} 33. Qb7+ {[%clk 0:00:56.7]}
33... Be7 {[%clk 0:01:34.8]} 34. Qd5+ {[%clk 0:00:55.3]} 34... Kf8 {[%clk
0:01:20.1]} 35. Bh6+ {[%clk 0:00:53.6]} 35... Ke8 {[%clk 0:01:19.4]} 36. Qg8+
{[%clk 0:00:51.9]} 36... Kd7 {[%clk 0:01:19]} 37. Qxh7 {[%clk 0:00:51.9]} 37...
Qa1+ {[%clk 0:01:12.1]} 38. Kh2 {[%clk 0:00:50.3]} 38... Qe5+ {[%clk 0:01:12.1]}
39. Kh1 {[%clk 0:00:49.2]} 39... Qf5 {[%clk 0:01:04.4]} 40. Be3 {[%clk
0:00:45.4]} 40... Ke6 {[%clk 0:01:01.3]} 41. Qg8+ {[%clk 0:00:38.4]} 41... Kd7
{[%clk 0:00:56.9]} 42. Qc4 {[%clk 0:00:37.8]} 42... Bd6 {[%clk 0:00:48.3]} 43.
Qg4 {[%clk 0:00:31.3]} 43... Qxg4 {[%clk 0:00:46.2]} 44. hxg4 {[%clk 0:00:31.3]}
44... Bxb4 {[%clk 0:00:46.8]} 45. Kg1 {[%clk 0:00:30.7]} 45... a5 {[%clk
0:00:45]} 46. Kf1 {[%clk 0:00:31.6]} 46... Bc3 {[%clk 0:00:43.2]} 47. Ke2 {[%clk
0:00:32.5]} 47... a4 {[%clk 0:00:43.3]} 48. Kd3 {[%clk 0:00:33.4]} 48... Bg7
{[%clk 0:00:43.4]} 49. Kc4 {[%clk 0:00:29.8]} 49... a3 {[%clk 0:00:39.4]} 50.
Kb3 {[%clk 0:00:28.1]} 50... Bf8 {[%clk 0:00:36.5]} 51. Bc1 {[%clk 0:00:21.8]}
51... Ke6 {[%clk 0:00:36.5]} 52. Bxa3 {[%clk 0:00:21.7]} 52... Bxa3 {[%clk
0:00:36.7]} 53. Kxa3 {[%clk 0:00:22.4]} 53... Ke5 {[%clk 0:00:35.9]} 54. Kb4
{[%clk 0:00:23]} 54... Kf4 {[%clk 0:00:36.2]} 55. Kc5 {[%clk 0:00:23.6]} 55...
Kg3 {[%clk 0:00:30]} 56. Kd5 {[%clk 0:00:23.4]} 56... Kxg2 {[%clk 0:00:25.6]}
57. Ke5 {[%clk 0:00:23.6]} 57... Kg3 {[%clk 0:00:25.6]} 58. Kf6 {[%clk
0:00:20.9]} 58... Kxg4 {[%clk 0:00:25.9]} 59. Kxg6 {[%clk 0:00:21]} 1/2-1/2

[Event "*** SCC Grand Prix: Titled Tuesday Blitz"]
[Site "Chess.com"]
[Date "2020.06.09"]
[Round "5"]
[White "Gajuchess"]
[Black "DortmundCity"]
[Result "1-0"]
[WhiteElo "2790"]
[BlackElo "2598"]
[TimeControl "180+1"]
[EndTime "9:57:03 PDT"]
[Termination "Gajuchess won by checkmate"]

1. d4 {[%clk 0:02:31.3]} 1... d5 {[%clk 0:03:00]} 2. Nf3 {[%clk 0:02:30.9]} 2...
Nf6 {[%clk 0:02:59.9]} 3. g3 {[%clk 0:02:31.8]} 3... Bf5 {[%clk 0:02:52.4]} 4.
Bg2 {[%clk 0:02:32.7]} 4... h6 {[%clk 0:02:52.7]} 5. c4 {[%clk 0:02:33.1]} 5...
e6 {[%clk 0:02:52.8]} 6. Nc3 {[%clk 0:02:32]} 6... c6 {[%clk 0:02:52.5]} 7. Qb3
{[%clk 0:02:32.4]} 7... Qb6 {[%clk 0:02:51.9]} 8. c5 {[%clk 0:02:32.8]} 8...
Qxb3 {[%clk 0:02:51.9]} 9. axb3 {[%clk 0:02:33.7]} 9... Nbd7 {[%clk 0:02:52.2]}
10. b4 {[%clk 0:02:34.2]} 10... a6 {[%clk 0:02:48.9]} 11. b5 {[%clk 0:02:34.7]}
11... cxb5 {[%clk 0:02:49.1]} 12. Nxb5 {[%clk 0:02:34.7]} 12... Rc8 {[%clk
0:02:49.8]} 13. Nc3 {[%clk 0:02:32.6]} 13... Ne4 {[%clk 0:02:48.4]} 14. Bf4
{[%clk 0:02:25.6]} 14... g5 {[%clk 0:02:39.2]} 15. Be3 {[%clk 0:02:16.5]} 15...
Bg7 {[%clk 0:02:32.8]} 16. Nd2 {[%clk 0:02:10.4]} 16... Nxc3 {[%clk 0:02:21.9]}
17. bxc3 {[%clk 0:02:11.3]} 17... Nxc5 {[%clk 0:02:22.3]} 18. dxc5 {[%clk
0:02:10.7]} 18... Bxc3 {[%clk 0:02:21.8]} 19. Ra4 {[%clk 0:02:09]} 19... Bc2
{[%clk 0:02:14.2]} 20. Bd4 {[%clk 0:01:52.7]} 20... Bxa4 {[%clk 0:02:04.3]} 21.
Bxc3 {[%clk 0:01:52.9]} 21... Rxc5 {[%clk 0:02:04.2]} 22. Ne4 {[%clk 0:01:53.2]}
22... dxe4 {[%clk 0:01:47.3]} 23. Bxh8 {[%clk 0:01:53.2]} 23... Rc1+ {[%clk
0:01:12]} 24. Kd2 {[%clk 0:01:52.5]} 24... Rxh1 {[%clk 0:01:03.2]} 25. Bxh1
{[%clk 0:01:53.4]} 25... f5 {[%clk 0:01:03.7]} 26. f3 {[%clk 0:01:38.6]} 26...
a5 {[%clk 0:00:53.4]} 27. fxe4 {[%clk 0:01:37.8]} 27... Bc6 {[%clk 0:00:52.5]}
28. Bf3 {[%clk 0:01:34.2]} 28... g4 {[%clk 0:00:47.7]} 29. Bg2 {[%clk
0:01:33.6]} 29... Kd7 {[%clk 0:00:40.7]} 30. Ke3 {[%clk 0:01:33.6]} 30... b5
{[%clk 0:00:35.8]} 31. Kd4 {[%clk 0:01:08.8]} 31... b4 {[%clk 0:00:29.6]} 32.
Kc4 {[%clk 0:01:07.6]} 32... fxe4 {[%clk 0:00:22.4]} 33. e3 {[%clk 0:01:01.8]}
33... Kd6 {[%clk 0:00:16.1]} 34. Bg7 {[%clk 0:00:59]} 34... Bd5+ {[%clk
0:00:07.7]} 35. Kd4 {[%clk 0:00:45.1]} 35... h5 {[%clk 0:00:07.1]} 36. Bf1
{[%clk 0:00:43.7]} 36... Kc6 {[%clk 0:00:06.5]} 37. Bf8 {[%clk 0:00:41.5]} 37...
Kb6 {[%clk 0:00:05.1]} 38. Be2 {[%clk 0:00:27.8]} 38... Kc6 {[%clk 0:00:04.7]}
39. Ke5 {[%clk 0:00:26.1]} 39... Kb6 {[%clk 0:00:03.8]} 40. Kd4 {[%clk 0:00:22]}
40... Kc6 {[%clk 0:00:03.9]} 41. Be7 {[%clk 0:00:14.9]} 41... Kb6 {[%clk
0:00:04]} 42. Ke5 {[%clk 0:00:15]} 42... b3 {[%clk 0:00:02.7]} 43. Ba3 {[%clk
0:00:13.6]} 43... a4 {[%clk 0:00:03.1]} 44. Kd4 {[%clk 0:00:13.7]} 44... Ka5
{[%clk 0:00:03.5]} 45. Kc5 {[%clk 0:00:13.1]} 45... Bb7 {[%clk 0:00:03]} 46.
Bb4# {[%clk 0:00:13.1]} 1-0

[Event "*** SCC Grand Prix: Titled Tuesday Blitz"]
[Site "Chess.com"]
[Date "2020.06.09"]
[Round "5"]
[White "XiaoKangZhong"]
[Black "szachuspl"]
[Result "0-1"]
[WhiteElo "2391"]
[BlackElo "2554"]
[TimeControl "180+1"]
[EndTime "9:57:03 PDT"]
[Termination "szachuspl won by checkmate"]

1. e4 {[%clk 0:03:00.9]} 1... c5 {[%clk 0:02:59.4]} 2. c3 {[%clk 0:03:00.8]}
2... Nf6 {[%clk 0:02:58.7]} 3. e5 {[%clk 0:03:00.6]} 3... Nd5 {[%clk 0:02:59.1]}
4. d4 {[%clk 0:03:01.5]} 4... cxd4 {[%clk 0:02:58.9]} 5. Nf3 {[%clk 0:03:01.7]}
5... Nc6 {[%clk 0:02:58.7]} 6. cxd4 {[%clk 0:03:02.3]} 6... d6 {[%clk
0:02:59.1]} 7. Bc4 {[%clk 0:03:02.4]} 7... Nb6 {[%clk 0:02:58.5]} 8. Bb5 {[%clk
0:03:02.8]} 8... dxe5 {[%clk 0:02:53.9]} 9. Nxe5 {[%clk 0:03:03]} 9... Bd7
{[%clk 0:02:53.6]} 10. Nxd7 {[%clk 0:03:03.3]} 10... Qxd7 {[%clk 0:02:53.7]} 11.
Nc3 {[%clk 0:03:02.2]} 11... a6 {[%clk 0:02:53.8]} 12. Bxc6 {[%clk 0:03:01.7]}
12... bxc6 {[%clk 0:02:42.7]} 13. O-O {[%clk 0:02:55.9]} 13... e6 {[%clk
0:02:42.5]} 14. Qg4 {[%clk 0:02:49.3]} 14... g6 {[%clk 0:02:32.6]} 15. Bf4
{[%clk 0:02:10.2]} 15... Bg7 {[%clk 0:02:26.3]} 16. Rfd1 {[%clk 0:02:08.5]}
16... O-O {[%clk 0:02:23.4]} 17. Rac1 {[%clk 0:02:07]} 17... Nd5 {[%clk
0:02:21]} 18. Be5 {[%clk 0:02:04.6]} 18... Nxc3 {[%clk 0:02:05.9]} 19. Rxc3
{[%clk 0:02:02.1]} 19... Rfd8 {[%clk 0:01:56.2]} 20. Bxg7 {[%clk 0:01:56.3]}
20... Kxg7 {[%clk 0:01:56.3]} 21. Qe4 {[%clk 0:01:56.4]} 21... Qd5 {[%clk
0:01:53.4]} 22. Qxd5 {[%clk 0:01:48.5]} 22... cxd5 {[%clk 0:01:53.4]} 23. Kf1
{[%clk 0:01:47.3]} 23... Rdc8 {[%clk 0:01:46.9]} 24. Rdc1 {[%clk 0:01:46.4]}
24... Rxc3 {[%clk 0:01:46.9]} 25. Rxc3 {[%clk 0:01:47.3]} 25... Rb8 {[%clk
0:01:45.1]} 26. b3 {[%clk 0:01:47]} 26... Rb4 {[%clk 0:01:45.1]} 27. Rd3 {[%clk
0:01:47]} 27... g5 {[%clk 0:01:42.9]} 28. Ke2 {[%clk 0:01:46.9]} 28... Kf6
{[%clk 0:01:43.1]} 29. Ke3 {[%clk 0:01:47.1]} 29... Kf5 {[%clk 0:01:42.8]} 30.
a3 {[%clk 0:01:37.7]} 30... Rb7 {[%clk 0:01:39.2]} 31. Rc3 {[%clk 0:01:38.1]}
31... a5 {[%clk 0:01:36.9]} 32. Kd3 {[%clk 0:01:34.3]} 32... h5 {[%clk
0:01:35.7]} 33. f3 {[%clk 0:01:25]} 33... g4 {[%clk 0:01:35.5]} 34. Kc2 {[%clk
0:01:17.7]} 34... Kf4 {[%clk 0:01:35.6]} 35. fxg4 {[%clk 0:01:17.1]} 35... hxg4
{[%clk 0:01:35.6]} 36. Rc5 {[%clk 0:01:17]} 36... Ra7 {[%clk 0:01:33.3]} 37. Kd3
{[%clk 0:01:15.4]} 37... Ra6 {[%clk 0:01:26.8]} 38. Rb5 {[%clk 0:01:09.1]} 38...
f6 {[%clk 0:01:24.5]} 39. Rb7 {[%clk 0:01:02.1]} 39... e5 {[%clk 0:00:44.4]} 40.
Rb5 {[%clk 0:00:59.3]} 40... e4+ {[%clk 0:00:39.4]} 41. Kd2 {[%clk 0:00:59]}
41... e3+ {[%clk 0:00:36.3]} 42. Kd3 {[%clk 0:00:55]} 42... Re6 {[%clk 0:00:36]}
43. Ke2 {[%clk 0:00:49]} 43... Ke4 {[%clk 0:00:36]} 44. Rxa5 {[%clk 0:00:47.2]}
44... f5 {[%clk 0:00:33.7]} 45. Ra8 {[%clk 0:00:20.9]} 45... Kxd4 {[%clk
0:00:28]} 46. Rf8 {[%clk 0:00:20.6]} 46... Ke4 {[%clk 0:00:27.9]} 47. b4 {[%clk
0:00:19.5]} 47... d4 {[%clk 0:00:28.1]} 48. Rd8 {[%clk 0:00:19.4]} 48... f4
{[%clk 0:00:26.4]} 49. b5 {[%clk 0:00:18.4]} 49... f3+ {[%clk 0:00:22.8]} 50.
gxf3+ {[%clk 0:00:19.3]} 50... gxf3+ {[%clk 0:00:22.9]} 51. Kf1 {[%clk
0:00:18.9]} 51... Kd3 {[%clk 0:00:21.2]} 52. a4 {[%clk 0:00:18.9]} 52... e2+
{[%clk 0:00:20.9]} 53. Ke1 {[%clk 0:00:19.4]} 53... f2+ {[%clk 0:00:21.5]} 54.
Kxf2 {[%clk 0:00:20]} 54... e1=Q+ {[%clk 0:00:22.2]} 55. Kg2 {[%clk 0:00:20.6]}
55... Qe4+ {[%clk 0:00:22]} 56. Kf2 {[%clk 0:00:20.3]} 56... Rf6+ {[%clk
0:00:21.9]} 57. Kg1 {[%clk 0:00:20.6]} 57... Qg4+ {[%clk 0:00:20.1]} 58. Kh1
{[%clk 0:00:20.5]} 58... Rf1# {[%clk 0:00:20.8]} 0-1

[Event "*** SCC Grand Prix: Titled Tuesday Blitz"]
[Site "Chess.com"]
[Date "2020.06.09"]
[Round "5"]
[White "Lovinski"]
[Black "parnali1611"]
[Result "1-0"]
[WhiteElo "2357"]
[BlackElo "2044"]
[TimeControl "180+1"]
[EndTime "9:57:04 PDT"]
[Termination "Lovinski won by resignation"]

1. Nf3 {[%clk 0:03:00.9]} 1... Nf6 {[%clk 0:02:51.8]} 2. g3 {[%clk 0:03:01.2]}
2... d5 {[%clk 0:02:50.1]} 3. Bg2 {[%clk 0:03:01.3]} 3... c5 {[%clk 0:02:49.7]}
4. O-O {[%clk 0:03:00.6]} 4... Nc6 {[%clk 0:02:49.3]} 5. d4 {[%clk 0:03:01.1]}
5... cxd4 {[%clk 0:02:42.3]} 6. Nxd4 {[%clk 0:03:02]} 6... e5 {[%clk 0:02:41.9]}
7. Nxc6 {[%clk 0:03:02.4]} 7... bxc6 {[%clk 0:02:41.8]} 8. c4 {[%clk 0:03:03.3]}
8... Be6 {[%clk 0:02:41.6]} 9. Nc3 {[%clk 0:03:00.1]} 9... Be7 {[%clk
0:02:27.6]} 10. Bg5 {[%clk 0:02:47.9]} 10... e4 {[%clk 0:02:18.7]} 11. Qa4
{[%clk 0:02:30.8]} 11... Qd7 {[%clk 0:02:14.3]} 12. cxd5 {[%clk 0:02:29.2]}
12... cxd5 {[%clk 0:02:12.6]} 13. Qxd7+ {[%clk 0:02:29.5]} 13... Nxd7 {[%clk
0:02:11.9]} 14. Bxe7 {[%clk 0:02:23.2]} 14... Kxe7 {[%clk 0:02:11.2]} 15. Rfd1
{[%clk 0:02:22.9]} 15... Nb6 {[%clk 0:02:10.3]} 16. Nb5 {[%clk 0:02:08.5]} 16...
Rhd8 {[%clk 0:02:07.7]} 17. Nd4 {[%clk 0:02:08.5]} 17... Rac8 {[%clk 0:02:03.2]}
18. Rac1 {[%clk 0:02:08.2]} 18... Bd7 {[%clk 0:01:54.5]} 19. b3 {[%clk
0:02:06.2]} 19... Kd6 {[%clk 0:01:49.9]} 20. h3 {[%clk 0:01:56.9]} 20... Ke5
{[%clk 0:01:46.8]} 21. f4+ {[%clk 0:01:46.9]} 21... Kd6 {[%clk 0:01:39.7]} 22.
e3 {[%clk 0:01:44.8]} 22... Rxc1 {[%clk 0:01:38.4]} 23. Rxc1 {[%clk 0:01:42.4]}
23... Rc8 {[%clk 0:01:38.9]} 24. Rxc8 {[%clk 0:01:38.8]} 24... Nxc8 {[%clk
0:01:38.4]} 25. Kf2 {[%clk 0:01:38]} 25... a5 {[%clk 0:01:37.4]} 26. Ke2 {[%clk
0:01:37.5]} 26... Kc5 {[%clk 0:01:37.1]} 27. Kd2 {[%clk 0:01:37.6]} 27... Kb4
{[%clk 0:01:35.6]} 28. Nc2+ {[%clk 0:01:37.8]} 28... Kc5 {[%clk 0:01:35.3]} 29.
Kc3 {[%clk 0:01:38.3]} 29... Nd6 {[%clk 0:01:33.6]} 30. Nd4 {[%clk 0:01:34.4]}
30... Nb5+ {[%clk 0:01:31.9]} 31. Nxb5 {[%clk 0:01:34.7]} 31... Bxb5 {[%clk
0:01:31.7]} 32. a3 {[%clk 0:01:29.5]} 32... f6 {[%clk 0:01:26.9]} 33. g4 {[%clk
0:01:27.4]} 33... h6 {[%clk 0:01:22.8]} 34. h4 {[%clk 0:01:27.2]} 34... Be2
{[%clk 0:01:22.1]} 35. g5 {[%clk 0:01:24.8]} 35... fxg5 {[%clk 0:01:19.2]} 36.
fxg5 {[%clk 0:01:24]} 36... hxg5 {[%clk 0:01:16.9]} 37. hxg5 {[%clk 0:01:24.9]}
37... Kd6 {[%clk 0:01:16.4]} 38. Kd4 {[%clk 0:01:22.4]} 38... Bb5 {[%clk
0:01:10.4]} 39. Bh3 {[%clk 0:01:18.4]} 39... Bd3 {[%clk 0:01:07.1]} 40. b4
{[%clk 0:01:16.7]} 40... axb4 {[%clk 0:01:05.7]} 41. axb4 {[%clk 0:01:17.6]}
41... Bc4 {[%clk 0:01:04.4]} 42. Bf5 {[%clk 0:01:16.5]} 42... Bd3 {[%clk
0:01:00.7]} 43. Bc8 {[%clk 0:01:15.2]} 43... Bb5 {[%clk 0:00:59.9]} 44. Bf5
{[%clk 0:01:08.1]} 44... Bc4 {[%clk 0:00:59.4]} 45. Bxe4 {[%clk 0:01:08.2]}
45... Kc6 {[%clk 0:00:53.3]} 46. Bf3 {[%clk 0:00:56.2]} 46... Bb3 {[%clk
0:00:47.5]} 47. Be2 {[%clk 0:00:53.4]} 47... Kd6 {[%clk 0:00:46.1]} 48. Bd3
{[%clk 0:00:53.9]} 48... Ba4 {[%clk 0:00:44]} 49. b5 {[%clk 0:00:53.4]} 49...
Bb3 {[%clk 0:00:38]} 50. Bg6 {[%clk 0:00:48.7]} 50... Ba2 {[%clk 0:00:33.9]} 51.
Be8 {[%clk 0:00:47]} 51... Bb3 {[%clk 0:00:30.1]} 52. b6 {[%clk 0:00:42.7]}
52... Ba2 {[%clk 0:00:29.1]} 53. b7 {[%clk 0:00:38.2]} 53... Kc7 {[%clk
0:00:28.7]} 54. Bc6 {[%clk 0:00:38.7]} 54... Bb3 {[%clk 0:00:27]} 55. Bxd5
{[%clk 0:00:38.8]} 55... Bxd5 {[%clk 0:00:24.7]} 56. Kxd5 {[%clk 0:00:39.7]}
56... Kxb7 {[%clk 0:00:24]} 57. Ke6 {[%clk 0:00:40.1]} 57... Kc7 {[%clk
0:00:23.2]} 58. Kf7 {[%clk 0:00:40.6]} 58... Kd7 {[%clk 0:00:22.6]} 59. Kxg7
{[%clk 0:00:40.9]} 59... Ke7 {[%clk 0:00:22.7]} 60. g6 {[%clk 0:00:40.6]} 60...
Ke8 {[%clk 0:00:21]} 61. Kh7 {[%clk 0:00:38.8]} 1-0